[Event "Titled Tuesday Blitz January 17 Late 2023"]
[White "Nakamura, Hikaru"]
[Black "Potapova, Margarita"]
[WhiteFideId "2016192"]
[BlackFideId "14126869"]
[WhiteElo "2775"]
[BlackElo "2104"]
[Result "1-0"]
[Round "01"]
[TimeControl "180+2"]
[Date "2023.01.17"]
[WhiteClock "0:01:22"]
[BlackClock "0:00:01"]

1. Nf3 {[%clk 0:03:00]}  d5 {[%clk 0:02:56]} 2. e3 {[%clk 0:03:00]}  Nf6 {[%clk 0:02:47]} 3. b3 {[%clk 0:02:57]}  g6 {[%clk 0:02:47]} 4. Bb2 {[%clk 0:02:58]}  Bg7 {[%clk 0:02:48]} 5. d4 {[%clk 0:02:58]}  O-O {[%clk 0:02:48]} 6. Nbd2 {[%clk 0:02:58]}  a5 {[%clk 0:02:48]} 7. a3 {[%clk 0:02:56]}  Nbd7 {[%clk 0:02:46]} 8. c4 {[%clk 0:02:56]}  c6 {[%clk 0:02:43]} 9. Bd3 {[%clk 0:02:56]}  b6 {[%clk 0:02:26]} 10. cxd5 {[%clk 0:02:54]}  cxd5 {[%clk 0:02:26]} 11. O-O {[%clk 0:02:48]}  Ba6 {[%clk 0:02:26]} 12. Bxa6 {[%clk 0:02:47]}  Rxa6 {[%clk 0:02:27]} 13. Qe2 {[%clk 0:02:48]}  Ra8 {[%clk 0:02:27]} 14. Rfc1 {[%clk 0:02:47]}  Rc8 {[%clk 0:02:23]} 15. Qb5 {[%clk 0:02:47]}  Ne4 {[%clk 0:02:21]} 16. Nxe4 {[%clk 0:02:42]}  dxe4 {[%clk 0:02:22]} 17. Nd2 {[%clk 0:02:43]}  Nc5 {[%clk 0:02:19]} 18. Rc4 {[%clk 0:02:18]}  Nd3 {[%clk 0:02:12]} 19. Bc3 {[%clk 0:02:18]}  f5 {[%clk 0:02:05]} 20. Rxc8 {[%clk 0:02:16]}  Qxc8 {[%clk 0:02:06]} 21. Nc4 {[%clk 0:02:16]}  Kh8 {[%clk 0:01:24]} 22. Qd5 {[%clk 0:01:57]}  a4 {[%clk 0:01:15]} 23. bxa4 {[%clk 0:01:51]}  e6 {[%clk 0:00:45]} 24. Qb5 {[%clk 0:01:48]}  f4 {[%clk 0:00:46]} 25. Bb4 {[%clk 0:01:41]}  Rd8 {[%clk 0:00:32]} 26. Nd6 {[%clk 0:01:37]}  Rxd6 {[%clk 0:00:19]} 27. Bxd6 {[%clk 0:01:36]}  fxe3 {[%clk 0:00:20]} 28. fxe3 {[%clk 0:01:36]}  Bh6 {[%clk 0:00:19]} 29. h3 {[%clk 0:01:29]}  Bxe3+ {[%clk 0:00:19]} 30. Kh2 {[%clk 0:01:30]}  Bxd4 {[%clk 0:00:17]} 31. Rf1 {[%clk 0:01:30]}  Bg7 {[%clk 0:00:16]} 32. Qxb6 {[%clk 0:01:28]}  Qe8 {[%clk 0:00:06]} 33. a5 {[%clk 0:01:26]}  Ne5 {[%clk 0:00:02]} 34. a6 {[%clk 0:01:21]}  Nc4 {[%clk 0:00:02]} 35. Qb8 {[%clk 0:01:21]}  Nxd6 {[%clk 0:00:01]} 36. Qxe8+ {[%clk 0:01:22]}  Nxe8 {[%clk 0:00:01]} 37. a7 {[%clk 0:01:22]} 1-0


[Site "https://www.chess.com"]

[Event "Titled Tuesday Blitz January 17 Late 2023"]
[White "Pasti, Aron"]
[Black "Artemiev, Vladislav"]
[WhiteFideId "785857"]
[BlackFideId "24101605"]
[WhiteElo "2361"]
[BlackElo "2701"]
[Result "0-1"]
[Round "01"]
[TimeControl "180+2"]
[Date "2023.01.17"]
[WhiteClock "0:00:01"]
[BlackClock "0:00:05"]

1. e4 {[%clk 0:03:00]}  c5 {[%clk 0:02:59]} 2. Nf3 {[%clk 0:03:01]}  d6 {[%clk 0:02:59]} 3. d4 {[%clk 0:03:01]}  cxd4 {[%clk 0:02:59]} 4. Nxd4 {[%clk 0:03:02]}  Nf6 {[%clk 0:02:59]} 5. Nc3 {[%clk 0:03:03]}  a6 {[%clk 0:03:00]} 6. Bg5 {[%clk 0:03:03]}  Nbd7 {[%clk 0:02:58]} 7. Qe2 {[%clk 0:02:59]}  h6 {[%clk 0:02:38]} 8. Bh4 {[%clk 0:02:51]}  b5 {[%clk 0:02:25]} 9. f4 {[%clk 0:02:41]}  g5 {[%clk 0:02:21]} 10. fxg5 {[%clk 0:02:34]}  hxg5 {[%clk 0:02:22]} 11. Bxg5 {[%clk 0:02:32]}  Bb7 {[%clk 0:02:22]} 12. O-O-O {[%clk 0:02:28]}  Rc8 {[%clk 0:02:17]} 13. Nd5 {[%clk 0:02:04]}  Nxd5 {[%clk 0:02:00]} 14. exd5 {[%clk 0:02:05]}  Ne5 {[%clk 0:01:47]} 15. Kb1 {[%clk 0:02:02]}  Bxd5 {[%clk 0:01:31]} 16. Nf5 {[%clk 0:01:39]}  Bc4 {[%clk 0:01:30]} 17. Qe4 {[%clk 0:01:28]}  Qc7 {[%clk 0:01:27]} 18. Bxc4 {[%clk 0:01:20]}  Qxc4 {[%clk 0:01:24]} 19. Rd4 {[%clk 0:01:19]}  Qc6 {[%clk 0:01:20]} 20. Qe2 {[%clk 0:01:10]}  f6 {[%clk 0:01:03]} 21. Nxd6+ {[%clk 0:01:02]}  exd6 {[%clk 0:01:03]} 22. Bxf6 {[%clk 0:01:02]}  Rh7 {[%clk 0:00:46]} 23. Re1 {[%clk 0:00:50]}  Be7 {[%clk 0:00:39]} 24. Bxe5 {[%clk 0:00:42]}  dxe5 {[%clk 0:00:40]} 25. Re4 {[%clk 0:00:43]}  Bf6 {[%clk 0:00:28]} 26. g4 {[%clk 0:00:34]}  Kd8 {[%clk 0:00:20]} 27. Re3 {[%clk 0:00:30]}  Rd7 {[%clk 0:00:14]} 28. Rd1 {[%clk 0:00:17]}  Rc7 {[%clk 0:00:09]} 29. Rf1 {[%clk 0:00:15]}  Kc8 {[%clk 0:00:07]} 30. g5 {[%clk 0:00:12]}  Bxg5 {[%clk 0:00:07]} 31. Rxe5 {[%clk 0:00:13]}  Be7 {[%clk 0:00:05]} 32. Re6 {[%clk 0:00:10]}  Bd6 {[%clk 0:00:04]} 33. c3 {[%clk 0:00:04]}  Kb7 {[%clk 0:00:04]} 34. h4 {[%clk 0:00:04]}  Re7 {[%clk 0:00:04]} 35. h5 {[%clk 0:00:04]}  Rxe6 {[%clk 0:00:04]} 36. Qxe6 {[%clk 0:00:05]}  Bc5 {[%clk 0:00:05]} 37. Qe2 {[%clk 0:00:04]}  Re7 {[%clk 0:00:05]} 38. Qg4 {[%clk 0:00:04]}  Qe4+ {[%clk 0:00:05]} 39. Qxe4+ {[%clk 0:00:04]}  Rxe4 {[%clk 0:00:06]} 40. Rf7+ {[%clk 0:00:04]}  Kc6 {[%clk 0:00:05]} 41. Rf6+ {[%clk 0:00:04]}  Bd6 {[%clk 0:00:05]} 42. h6 {[%clk 0:00:04]}  Rh4 {[%clk 0:00:05]} 43. Rg6 {[%clk 0:00:04]}  Rh2 {[%clk 0:00:04]} 44. a3 {[%clk 0:00:05]}  a5 {[%clk 0:00:04]} 45. Ka2 {[%clk 0:00:04]}  Kd5 {[%clk 0:00:03]} 46. Rg5+ {[%clk 0:00:04]}  Be5 {[%clk 0:00:04]} 47. Kb3 {[%clk 0:00:03]}  Rxh6 {[%clk 0:00:03]} 48. a4 {[%clk 0:00:02]}  b4 {[%clk 0:00:04]} 49. cxb4 {[%clk 0:00:02]}  Rh3+ {[%clk 0:00:04]} 50. Ka2 {[%clk 0:00:01]}  axb4 {[%clk 0:00:05]} 51. Rg4 {[%clk 0:00:01]}  b3+ {[%clk 0:00:05]} 52. Ka3 {[%clk 0:00:01]}  Bd6+ {[%clk 0:00:05]} 0-1


[Site "https://www.chess.com"]

[Event "Titled Tuesday Blitz January 17 Late 2023"]
[White "Naroditsky, Daniel"]
[Black "Culum, Sanjin"]
[WhiteFideId "2026961"]
[BlackFideId "14420937"]
[WhiteElo "2618"]
[BlackElo "2242"]
[Result "1-0"]
[Round "01"]
[TimeControl "180+2"]
[Date "2023.01.17"]
[WhiteClock "0:01:00"]
[BlackClock "0:00:23"]

1. e4 {[%clk 0:03:00]}  Nc6 {[%clk 0:02:45]} 2. Nf3 {[%clk 0:03:00]}  d6 {[%clk 0:02:45]} 3. d4 {[%clk 0:02:57]}  Nf6 {[%clk 0:02:45]} 4. Nc3 {[%clk 0:02:57]}  g6 {[%clk 0:02:34]} 5. Bb5 {[%clk 0:02:49]}  a6 {[%clk 0:02:32]} 6. Bxc6+ {[%clk 0:02:49]}  bxc6 {[%clk 0:02:33]} 7. h3 {[%clk 0:02:49]}  Bg7 {[%clk 0:02:33]} 8. O-O {[%clk 0:02:48]}  O-O {[%clk 0:02:33]} 9. Be3 {[%clk 0:02:46]}  Rb8 {[%clk 0:02:29]} 10. Rb1 {[%clk 0:02:47]}  Nd7 {[%clk 0:02:28]} 11. Qd2 {[%clk 0:02:46]}  Bb7 {[%clk 0:02:10]} 12. Bh6 {[%clk 0:02:40]}  c5 {[%clk 0:02:10]} 13. Bxg7 {[%clk 0:02:40]}  Kxg7 {[%clk 0:02:10]} 14. d5 {[%clk 0:02:40]}  c6 {[%clk 0:02:09]} 15. Rfe1 {[%clk 0:02:40]}  Nf6 {[%clk 0:01:57]} 16. Rbd1 {[%clk 0:02:33]}  Qa5 {[%clk 0:01:46]} 17. a3 {[%clk 0:02:25]}  Ba8 {[%clk 0:01:35]} 18. Qc1 {[%clk 0:02:21]}  Qb6 {[%clk 0:01:31]} 19. b3 {[%clk 0:02:20]}  c4 {[%clk 0:01:28]} 20. bxc4 {[%clk 0:02:18]}  Qc5 {[%clk 0:01:28]} 21. Rd4 {[%clk 0:02:13]}  Nd7 {[%clk 0:01:06]} 22. e5 {[%clk 0:01:43]}  Nxe5 {[%clk 0:01:03]} 23. Rh4 {[%clk 0:01:43]}  Nxf3+ {[%clk 0:00:55]} 24. gxf3 {[%clk 0:01:44]}  h5 {[%clk 0:00:46]} 25. Rxh5 {[%clk 0:01:40]}  Rh8 {[%clk 0:00:41]} 26. Rxh8 {[%clk 0:01:38]}  Rxh8 {[%clk 0:00:42]} 27. Qf4 {[%clk 0:01:39]}  cxd5 {[%clk 0:00:38]} 28. Rxe7 {[%clk 0:01:32]}  Rf8 {[%clk 0:00:38]} 29. Nxd5 {[%clk 0:01:22]}  Bxd5 {[%clk 0:00:36]} 30. cxd5 {[%clk 0:01:23]}  Qxd5 {[%clk 0:00:37]} 31. Kg2 {[%clk 0:01:23]}  Qc5 {[%clk 0:00:34]} 32. Rd7 {[%clk 0:01:18]}  Qxa3 {[%clk 0:00:29]} 33. Rxd6 {[%clk 0:01:17]}  Kg8 {[%clk 0:00:26]} 34. c4 {[%clk 0:01:15]}  Qb4 {[%clk 0:00:26]} 35. Rxa6 {[%clk 0:01:13]}  Rc8 {[%clk 0:00:25]} 36. Ra7 {[%clk 0:01:11]}  Qxc4 {[%clk 0:00:25]} 37. Qf6 {[%clk 0:01:02]}  Rf8 {[%clk 0:00:24]} 38. Re7 {[%clk 0:01:01]}  Qd3 {[%clk 0:00:23]} 39. Re4 {[%clk 0:01:00]} 1-0


[Site "https://www.chess.com"]

[Event "Titled Tuesday Blitz January 17 Late 2023"]
[White "Sarana, Alexey"]
[Black "Pein, Jonathan"]
[WhiteFideId "24133795"]
[BlackFideId "417092"]
[WhiteElo "2685"]
[BlackElo "2265"]
[Result "1-0"]
[Round "01"]
[TimeControl "180+2"]
[Date "2023.01.17"]
[WhiteClock "0:01:53"]
[BlackClock "0:00:22"]

1. c4 {[%clk 0:02:53]}  g6 {[%clk 0:02:58]} 2. d4 {[%clk 0:02:52]}  Bg7 {[%clk 0:02:59]} 3. e4 {[%clk 0:02:52]}  Nf6 {[%clk 0:02:59]} 4. Nc3 {[%clk 0:02:52]}  O-O {[%clk 0:02:59]} 5. Be2 {[%clk 0:02:53]}  d6 {[%clk 0:02:58]} 6. Be3 {[%clk 0:02:53]}  e5 {[%clk 0:02:56]} 7. d5 {[%clk 0:02:53]}  a5 {[%clk 0:02:53]} 8. g4 {[%clk 0:02:53]}  Na6 {[%clk 0:02:52]} 9. g5 {[%clk 0:02:53]}  Nd7 {[%clk 0:02:52]} 10. h4 {[%clk 0:02:49]}  f5 {[%clk 0:02:40]} 11. gxf6 {[%clk 0:02:48]}  Nxf6 {[%clk 0:02:39]} 12. h5 {[%clk 0:02:49]}  Nc5 {[%clk 0:02:34]} 13. hxg6 {[%clk 0:02:46]}  hxg6 {[%clk 0:02:35]} 14. Bxc5 {[%clk 0:02:41]}  dxc5 {[%clk 0:02:35]} 15. Qd3 {[%clk 0:02:41]}  a4 {[%clk 0:02:21]} 16. Qg3 {[%clk 0:02:39]}  Kf7 {[%clk 0:02:09]} 17. Nf3 {[%clk 0:02:37]}  Ng4 {[%clk 0:01:54]} 18. Rh4 {[%clk 0:02:32]}  Rh8 {[%clk 0:01:38]} 19. Rxg4 {[%clk 0:02:24]}  Bxg4 {[%clk 0:01:39]} 20. Qxg4 {[%clk 0:02:24]}  Rh1+ {[%clk 0:01:39]} 21. Bf1 {[%clk 0:02:24]}  Qc8 {[%clk 0:01:28]} 22. Ng5+ {[%clk 0:02:22]}  Kg8 {[%clk 0:01:25]} 23. Ne6 {[%clk 0:02:22]}  a3 {[%clk 0:01:19]} 24. b3 {[%clk 0:02:22]}  Qd7 {[%clk 0:01:00]} 25. Qg2 {[%clk 0:02:12]}  Rh6 {[%clk 0:00:55]} 26. Be2 {[%clk 0:02:05]}  c6 {[%clk 0:00:54]} 27. O-O-O {[%clk 0:02:04]}  cxd5 {[%clk 0:00:53]} 28. exd5 {[%clk 0:02:03]}  e4 {[%clk 0:00:45]} 29. Nxe4 {[%clk 0:02:02]}  Re8 {[%clk 0:00:43]} 30. Bg4 {[%clk 0:02:00]}  Bb2+ {[%clk 0:00:42]} 31. Kc2 {[%clk 0:01:59]}  Qf7 {[%clk 0:00:36]} 32. Qg3 {[%clk 0:01:53]}  b5 {[%clk 0:00:31]} 33. Nd6 {[%clk 0:01:52]}  Qe7 {[%clk 0:00:24]} 34. Nxe8 {[%clk 0:01:52]}  Qxe8 {[%clk 0:00:24]} 35. d6 {[%clk 0:01:53]}  bxc4 {[%clk 0:00:24]} 36. d7 {[%clk 0:01:53]}  cxb3+ {[%clk 0:00:24]} 37. axb3 {[%clk 0:01:53]}  Qd8 {[%clk 0:00:22]} 38. Nxd8 {[%clk 0:01:53]} 1-0


[Site "https://www.chess.com"]

[Event "Titled Tuesday Blitz January 17 Late 2023"]
[White "Ladan, Nicholas"]
[Black "Duda, Jan-Krzysztof"]
[WhiteFideId "30918855"]
[BlackFideId "1170546"]
[WhiteElo "2228"]
[BlackElo "2724"]
[Result "0-1"]
[Round "01"]
[TimeControl "180+2"]
[Date "2023.01.17"]
[WhiteClock "0:00:47"]
[BlackClock "0:01:54"]

1. d4 {[%clk 0:02:58]}  Nf6 {[%clk 0:03:00]} 2. c4 {[%clk 0:02:59]}  c5 {[%clk 0:03:00]} 3. Nf3 {[%clk 0:02:57]}  cxd4 {[%clk 0:02:57]} 4. Nxd4 {[%clk 0:02:58]}  e5 {[%clk 0:02:57]} 5. Nb3 {[%clk 0:02:56]}  Nc6 {[%clk 0:02:51]} 6. Nc3 {[%clk 0:02:54]}  Bb4 {[%clk 0:02:50]} 7. Bd2 {[%clk 0:02:54]}  d6 {[%clk 0:02:49]} 8. g3 {[%clk 0:02:52]}  Be6 {[%clk 0:02:48]} 9. Nd5 {[%clk 0:02:44]}  Nxd5 {[%clk 0:02:45]} 10. cxd5 {[%clk 0:02:42]}  Bxd5 {[%clk 0:02:45]} 11. f3 {[%clk 0:02:36]}  Qb6 {[%clk 0:02:44]} 12. e4 {[%clk 0:02:29]}  Bxb3 {[%clk 0:02:40]} 13. axb3 {[%clk 0:02:25]}  Bxd2+ {[%clk 0:02:26]} 14. Qxd2 {[%clk 0:02:24]}  Nd4 {[%clk 0:02:26]} 15. Qc3 {[%clk 0:02:00]}  Qxb3 {[%clk 0:02:20]} 16. Qxb3 {[%clk 0:01:56]}  Nxb3 {[%clk 0:02:20]} 17. Ra3 {[%clk 0:01:52]}  Nd4 {[%clk 0:02:18]} 18. Kd2 {[%clk 0:01:47]}  h5 {[%clk 0:02:13]} 19. Bh3 {[%clk 0:01:39]}  h4 {[%clk 0:02:12]} 20. f4 {[%clk 0:01:12]}  hxg3 {[%clk 0:02:10]} 21. hxg3 {[%clk 0:01:12]}  Ke7 {[%clk 0:02:08]} 22. Bg2 {[%clk 0:01:11]}  Rxh1 {[%clk 0:02:07]} 23. Bxh1 {[%clk 0:01:12]}  Rh8 {[%clk 0:02:07]} 24. Ra1 {[%clk 0:01:09]}  Rh2+ {[%clk 0:02:06]} 25. Kc3 {[%clk 0:01:07]}  Rc2+ {[%clk 0:02:04]} 26. Kb4 {[%clk 0:01:07]}  Rxb2+ {[%clk 0:02:04]} 27. Kc4 {[%clk 0:01:07]}  a6 {[%clk 0:01:53]} 28. fxe5 {[%clk 0:01:06]}  dxe5 {[%clk 0:01:54]} 29. g4 {[%clk 0:01:06]}  Kd6 {[%clk 0:01:52]} 30. Ra3 {[%clk 0:00:58]}  b5+ {[%clk 0:01:49]} 31. Kd3 {[%clk 0:00:58]}  Rb3+ {[%clk 0:01:50]} 32. Rxb3 {[%clk 0:00:58]}  Nxb3 {[%clk 0:01:51]} 33. Bf3 {[%clk 0:00:56]}  Kc5 {[%clk 0:01:49]} 34. Bd1 {[%clk 0:00:57]}  Nd4 {[%clk 0:01:50]} 35. g5 {[%clk 0:00:56]}  a5 {[%clk 0:01:51]} 36. Bh5 {[%clk 0:00:56]}  Ne6 {[%clk 0:01:50]} 37. Bxf7 {[%clk 0:00:55]}  Nxg5 {[%clk 0:01:51]} 38. Bd5 {[%clk 0:00:55]}  Nh3 {[%clk 0:01:51]} 39. Ke3 {[%clk 0:00:53]}  Nf4 {[%clk 0:01:51]} 40. Ba2 {[%clk 0:00:52]}  a4 {[%clk 0:01:52]} 41. Bg8 {[%clk 0:00:52]}  b4 {[%clk 0:01:53]} 42. Kd2 {[%clk 0:00:53]}  b3 {[%clk 0:01:53]} 43. Kc3 {[%clk 0:00:53]}  Ne2+ {[%clk 0:01:53]} 44. Kb2 {[%clk 0:00:53]}  Kb4 {[%clk 0:01:54]} 45. Ka1 {[%clk 0:00:52]}  a3 {[%clk 0:01:55]} 46. Bxb3 {[%clk 0:00:47]}  Kxb3 {[%clk 0:01:54]} 0-1


[Site "https://www.chess.com"]

[Event "Titled Tuesday Blitz January 17 Late 2023"]
[White "Chigaev, Maksim"]
[Black "Jimenez Almeida, Luis David"]
[WhiteFideId "4108116"]
[BlackFideId "22242244"]
[WhiteElo "2628"]
[BlackElo "2242"]
[Result "1-0"]
[Round "01"]
[TimeControl "180+2"]
[Date "2023.01.17"]
[WhiteClock "0:00:20"]
[BlackClock "0:00:15"]

1. e4 {[%clk 0:03:00]}  c6 {[%clk 0:02:56]} 2. Nf3 {[%clk 0:02:56]}  g6 {[%clk 0:02:55]} 3. d3 {[%clk 0:02:57]}  Bg7 {[%clk 0:02:53]} 4. g3 {[%clk 0:02:58]}  d5 {[%clk 0:02:53]} 5. Bg2 {[%clk 0:02:59]}  e5 {[%clk 0:02:53]} 6. O-O {[%clk 0:02:58]}  Ne7 {[%clk 0:02:53]} 7. Re1 {[%clk 0:02:58]}  Qd6 {[%clk 0:02:51]} 8. exd5 {[%clk 0:02:57]}  cxd5 {[%clk 0:02:51]} 9. c4 {[%clk 0:02:58]}  dxc4 {[%clk 0:02:44]} 10. dxc4 {[%clk 0:02:50]}  Qxd1 {[%clk 0:02:43]} 11. Rxd1 {[%clk 0:02:51]}  Nbc6 {[%clk 0:02:41]} 12. Nc3 {[%clk 0:02:51]}  O-O {[%clk 0:02:39]} 13. Nd5 {[%clk 0:02:43]}  Nxd5 {[%clk 0:02:14]} 14. cxd5 {[%clk 0:02:43]}  Nd4 {[%clk 0:02:15]} 15. Nxd4 {[%clk 0:02:40]}  exd4 {[%clk 0:02:16]} 16. Bg5 {[%clk 0:02:40]}  Bg4 {[%clk 0:02:08]} 17. Rd2 {[%clk 0:02:34]}  Rfe8 {[%clk 0:02:05]} 18. d6 {[%clk 0:02:29]}  Rab8 {[%clk 0:02:02]} 19. h3 {[%clk 0:02:18]}  Bd7 {[%clk 0:01:58]} 20. Rc1 {[%clk 0:02:14]}  Rec8 {[%clk 0:01:16]} 21. Rc7 {[%clk 0:02:12]}  Rxc7 {[%clk 0:01:15]} 22. dxc7 {[%clk 0:02:11]}  Rc8 {[%clk 0:01:15]} 23. Bf4 {[%clk 0:01:52]}  Bc6 {[%clk 0:00:52]} 24. Bxc6 {[%clk 0:01:52]}  bxc6 {[%clk 0:00:53]} 25. Rc2 {[%clk 0:01:52]}  g5 {[%clk 0:00:49]} 26. Bd6 {[%clk 0:01:51]}  Bf8 {[%clk 0:00:47]} 27. Bxf8 {[%clk 0:01:24]}  Kxf8 {[%clk 0:00:47]} 28. Rxc6 {[%clk 0:01:24]}  Ke7 {[%clk 0:00:48]} 29. Kf1 {[%clk 0:01:23]}  Kd7 {[%clk 0:00:43]} 30. Rc4 {[%clk 0:01:20]}  Rxc7 {[%clk 0:00:42]} 31. Rxd4+ {[%clk 0:01:21]}  Ke6 {[%clk 0:00:42]} 32. Ra4 {[%clk 0:01:18]}  Rc1+ {[%clk 0:00:41]} 33. Kg2 {[%clk 0:01:18]}  Rc2 {[%clk 0:00:40]} 34. b3 {[%clk 0:01:17]}  Rc7 {[%clk 0:00:40]} 35. Ra6+ {[%clk 0:01:14]}  Ke7 {[%clk 0:00:36]} 36. g4 {[%clk 0:01:13]}  f6 {[%clk 0:00:35]} 37. b4 {[%clk 0:01:12]}  Kf7 {[%clk 0:00:34]} 38. b5 {[%clk 0:01:11]}  Kg6 {[%clk 0:00:34]} 39. a4 {[%clk 0:01:12]}  Rf7 {[%clk 0:00:27]} 40. a5 {[%clk 0:00:43]}  Rd7 {[%clk 0:00:27]} 41. b6 {[%clk 0:00:33]}  axb6 {[%clk 0:00:28]} 42. Rxb6 {[%clk 0:00:34]}  Rd5 {[%clk 0:00:27]} 43. a6 {[%clk 0:00:33]}  Ra5 {[%clk 0:00:27]} 44. Kf3 {[%clk 0:00:33]}  Ra3+ {[%clk 0:00:26]} 45. Ke4 {[%clk 0:00:30]}  Rxh3 {[%clk 0:00:19]} 46. f3 {[%clk 0:00:27]}  Rh1 {[%clk 0:00:19]} 47. Kd5 {[%clk 0:00:28]}  Ra1 {[%clk 0:00:18]} 48. Kc6 {[%clk 0:00:25]}  h5 {[%clk 0:00:17]} 49. gxh5+ {[%clk 0:00:26]}  Kxh5 {[%clk 0:00:18]} 50. Kb7 {[%clk 0:00:24]}  f5 {[%clk 0:00:18]} 51. Rb5 {[%clk 0:00:18]}  Kg6 {[%clk 0:00:18]} 52. a7 {[%clk 0:00:19]}  Rxa7+ {[%clk 0:00:14]} 53. Kxa7 {[%clk 0:00:19]}  g4 {[%clk 0:00:15]} 54. fxg4 {[%clk 0:00:20]}  fxg4 {[%clk 0:00:15]} 55. Kb6 {[%clk 0:00:20]}  g3 {[%clk 0:00:15]} 56. Rb3 {[%clk 0:00:20]} 1-0


[Site "https://www.chess.com"]

[Event "Titled Tuesday Blitz January 17 Late 2023"]
[White "Leenhouts, Koen"]
[Black "Eljanov, Pavel"]
[WhiteFideId "1008439"]
[BlackFideId "14102951"]
[WhiteElo "2447"]
[BlackElo "2705"]
[Result "0-1"]
[Round "01"]
[TimeControl "180+2"]
[Date "2023.01.17"]
[WhiteClock "0:00:04"]
[BlackClock "0:00:17"]

1. d4 {[%clk 0:02:54]}  Nf6 {[%clk 0:02:58]} 2. c4 {[%clk 0:02:53]}  e6 {[%clk 0:02:59]} 3. Nc3 {[%clk 0:02:50]}  Bb4 {[%clk 0:02:58]} 4. Qc2 {[%clk 0:02:51]}  O-O {[%clk 0:02:58]} 5. Nf3 {[%clk 0:02:49]}  d6 {[%clk 0:02:54]} 6. Bd2 {[%clk 0:02:42]}  Nbd7 {[%clk 0:02:42]} 7. a3 {[%clk 0:02:26]}  Bxc3 {[%clk 0:02:42]} 8. Bxc3 {[%clk 0:02:27]}  Qe7 {[%clk 0:02:37]} 9. e3 {[%clk 0:02:16]}  e5 {[%clk 0:02:37]} 10. Be2 {[%clk 0:02:13]}  a5 {[%clk 0:02:27]} 11. b3 {[%clk 0:01:58]}  b6 {[%clk 0:02:27]} 12. O-O {[%clk 0:01:56]}  Bb7 {[%clk 0:02:27]} 13. d5 {[%clk 0:01:53]}  c6 {[%clk 0:02:12]} 14. e4 {[%clk 0:01:30]}  cxd5 {[%clk 0:02:10]} 15. exd5 {[%clk 0:01:27]}  Rac8 {[%clk 0:02:06]} 16. Rac1 {[%clk 0:01:06]}  Nc5 {[%clk 0:01:55]} 17. Qb1 {[%clk 0:00:57]}  a4 {[%clk 0:01:46]} 18. b4 {[%clk 0:00:52]}  Nb3 {[%clk 0:01:47]} 19. Rc2 {[%clk 0:00:49]}  Ba6 {[%clk 0:01:47]} 20. Nd2 {[%clk 0:00:46]}  Nxd2 {[%clk 0:01:39]} 21. Bxd2 {[%clk 0:00:47]}  Rc7 {[%clk 0:01:31]} 22. b5 {[%clk 0:00:40]}  Bc8 {[%clk 0:01:30]} 23. Be3 {[%clk 0:00:35]}  Nd7 {[%clk 0:01:24]} 24. Qb4 {[%clk 0:00:32]}  Ra7 {[%clk 0:01:12]} 25. Qd2 {[%clk 0:00:23]}  Re8 {[%clk 0:01:08]} 26. Bd3 {[%clk 0:00:20]}  Rc7 {[%clk 0:01:07]} 27. Rcc1 {[%clk 0:00:17]}  Nc5 {[%clk 0:01:06]} 28. Bxc5 {[%clk 0:00:16]}  Rxc5 {[%clk 0:01:07]} 29. Rce1 {[%clk 0:00:16]}  f5 {[%clk 0:01:07]} 30. Qc2 {[%clk 0:00:14]}  e4 {[%clk 0:01:07]} 31. Qxa4 {[%clk 0:00:13]}  Qg5 {[%clk 0:00:51]} 32. Bb1 {[%clk 0:00:13]}  Rc7 {[%clk 0:00:47]} 33. f4 {[%clk 0:00:13]}  Qf6 {[%clk 0:00:46]} 34. Qb4 {[%clk 0:00:13]}  Qd4+ {[%clk 0:00:43]} 35. Kh1 {[%clk 0:00:12]}  Qxc4 {[%clk 0:00:33]} 36. Qxd6 {[%clk 0:00:11]}  Qc5 {[%clk 0:00:33]} 37. Qxc5 {[%clk 0:00:11]}  Rxc5 {[%clk 0:00:34]} 38. a4 {[%clk 0:00:11]}  Kf8 {[%clk 0:00:32]} 39. Rc1 {[%clk 0:00:11]}  Rxd5 {[%clk 0:00:31]} 40. Rc7 {[%clk 0:00:10]}  Be6 {[%clk 0:00:26]} 41. Rfc1 {[%clk 0:00:09]}  Red8 {[%clk 0:00:26]} 42. h3 {[%clk 0:00:08]}  Rd1+ {[%clk 0:00:26]} 43. Kh2 {[%clk 0:00:09]}  Rxc1 {[%clk 0:00:26]} 44. Rxc1 {[%clk 0:00:09]}  Ke7 {[%clk 0:00:26]} 45. Kg3 {[%clk 0:00:08]}  Rc8 {[%clk 0:00:25]} 46. Rxc8 {[%clk 0:00:07]}  Bxc8 {[%clk 0:00:25]} 47. Kf2 {[%clk 0:00:07]}  Kd6 {[%clk 0:00:25]} 48. Ke3 {[%clk 0:00:07]}  Kc5 {[%clk 0:00:25]} 49. g4 {[%clk 0:00:07]}  fxg4 {[%clk 0:00:23]} 50. hxg4 {[%clk 0:00:07]}  Bxg4 {[%clk 0:00:23]} 51. Bxe4 {[%clk 0:00:07]}  h5 {[%clk 0:00:24]} 52. f5 {[%clk 0:00:07]}  h4 {[%clk 0:00:21]} 53. Kf4 {[%clk 0:00:07]}  Bd1 {[%clk 0:00:21]} 54. Kg5 {[%clk 0:00:05]}  h3 {[%clk 0:00:20]} 55. Kg6 {[%clk 0:00:05]}  h2 {[%clk 0:00:20]} 56. Kxg7 {[%clk 0:00:05]}  Bc2 {[%clk 0:00:21]} 57. f6 {[%clk 0:00:03]}  Bxe4 {[%clk 0:00:21]} 58. f7 {[%clk 0:00:04]}  h1=Q {[%clk 0:00:21]} 59. f8=Q+ {[%clk 0:00:04]}  Kc4 {[%clk 0:00:20]} 60. Qf4 {[%clk 0:00:02]}  Qg2+ {[%clk 0:00:19]} 61. Kf6 {[%clk 0:00:02]}  Qf3 {[%clk 0:00:18]} 62. Ke5 {[%clk 0:00:02]}  Qxf4+ {[%clk 0:00:18]} 63. Kxf4 {[%clk 0:00:03]}  Bb7 {[%clk 0:00:17]} 64. a5 {[%clk 0:00:04]}  bxa5 {[%clk 0:00:16]} 65. Ke3 {[%clk 0:00:04]}  Kc3 {[%clk 0:00:17]} 0-1


[Site "https://www.chess.com"]